{"text_format":"3","workbook":"xlsx","n_sheets":1,"sheets":["Blodtryck och glukos"],"not_rendered":{"defined_names":9},"read":"whole","date_system":"1900"}

{"sheet":"Blodtryck och glukos","index":0,"n_rows":13,"n_cols":11,"rows_kept":13,"merged":[[0,1,4,3],[0,4,0,9],[1,4,1,6],[1,7,1,9],[3,7,4,7],[3,8,4,8],[3,9,4,9]]}
[null,"Blodtryck\noch glukos",null,null,"Anpassa skalvärdena i cellerna E2 till J5 nedan."]
[{"$nulls":4},"BLODTRYCK",null,null,"GLUKOSSKALA"]
[{"$nulls":4},120,"SYSTOLISKT",140,70,100,150]
[{"$nulls":4},80,"DIASTOLISKT",90,"LÅGT","NORMALT","HÖGT"]
[{"$nulls":4},"MÅLTRYCK",null,"RING LÄKARE"]
[null,"Datum","Tid","Händelse","Systoliskt","Diastoliskt","Hjärtfrekvens","Glukos","Nivå","Status","Anteckningar"]
[null,{"$f":"TODAY()","v":"2018-06-28"},"06:00:00","Uppvaknande",129,79,72,55,{"$f":"BlodtryckOchGlukos[[#This Row],[Glukos]]","v":55},{"$f":"IFERROR(IF(BlodtryckOchGlukos[[#This Row],[Nivå]]=0,\"\",IF(BlodtryckOchGlukos[[#This Row],[Nivå]]<=GLågt,\"LÅGT\",IF(AND(BlodtryckOchGlukos[[#This Row],[Nivå]]>GLågt,BlodtryckOchGlukos[[#This Row],[Nivå]]<GHögt),\"NORMALT\",\"HÖGT\"))), \"\")","v":"LÅGT"}]
[null,{"$f":"TODAY()","v":"2018-06-28"},"07:00:00","Före måltid",120,80,74,70,{"$f":"BlodtryckOchGlukos[[#This Row],[Glukos]]","v":70},{"$f":"IFERROR(IF(BlodtryckOchGlukos[[#This Row],[Nivå]]=0,\"\",IF(BlodtryckOchGlukos[[#This Row],[Nivå]]<=GLågt,\"LÅGT\",IF(AND(BlodtryckOchGlukos[[#This Row],[Nivå]]>GLågt,BlodtryckOchGlukos[[#This Row],[Nivå]]<GHögt),\"NORMALT\",\"HÖGT\"))), \"\")","v":"LÅGT"}]
[null,"2018-06-28","09:00:00","Efter måltid",133,80,75,75,{"$f":"BlodtryckOchGlukos[[#This Row],[Glukos]]","v":75},{"$f":"IFERROR(IF(BlodtryckOchGlukos[[#This Row],[Nivå]]=0,\"\",IF(BlodtryckOchGlukos[[#This Row],[Nivå]]<=GLågt,\"LÅGT\",IF(AND(BlodtryckOchGlukos[[#This Row],[Nivå]]>GLågt,BlodtryckOchGlukos[[#This Row],[Nivå]]<GHögt),\"NORMALT\",\"HÖGT\"))), \"\")","v":"NORMALT"}]
[null,"2018-06-28","10:00:00","Endast blodtryck",143,91,75,190,{"$f":"BlodtryckOchGlukos[[#This Row],[Glukos]]","v":190},{"$f":"IFERROR(IF(BlodtryckOchGlukos[[#This Row],[Nivå]]=0,\"\",IF(BlodtryckOchGlukos[[#This Row],[Nivå]]<=GLågt,\"LÅGT\",IF(AND(BlodtryckOchGlukos[[#This Row],[Nivå]]>GLågt,BlodtryckOchGlukos[[#This Row],[Nivå]]<GHögt),\"NORMALT\",\"HÖGT\"))), \"\")","v":"HÖGT"}]
[null,"2018-06-28","12:00:00","Före måltid",141,84,70,140,{"$f":"BlodtryckOchGlukos[[#This Row],[Glukos]]","v":140},{"$f":"IFERROR(IF(BlodtryckOchGlukos[[#This Row],[Nivå]]=0,\"\",IF(BlodtryckOchGlukos[[#This Row],[Nivå]]<=GLågt,\"LÅGT\",IF(AND(BlodtryckOchGlukos[[#This Row],[Nivå]]>GLågt,BlodtryckOchGlukos[[#This Row],[Nivå]]<GHögt),\"NORMALT\",\"HÖGT\"))), \"\")","v":"NORMALT"}]
[null,{"$f":"TODAY()","v":"2018-06-28"},"15:00:00","Efter måltid",132,80,68,90,{"$f":"BlodtryckOchGlukos[[#This Row],[Glukos]]","v":90},{"$f":"IFERROR(IF(BlodtryckOchGlukos[[#This Row],[Nivå]]=0,\"\",IF(BlodtryckOchGlukos[[#This Row],[Nivå]]<=GLågt,\"LÅGT\",IF(AND(BlodtryckOchGlukos[[#This Row],[Nivå]]>GLågt,BlodtryckOchGlukos[[#This Row],[Nivå]]<GHögt),\"NORMALT\",\"HÖGT\"))), \"\")","v":"NORMALT"},"Tog blodtrycksmedicin vid måltiden"]
[null,"Medelvärden",null,null,{"$f":"SUBTOTAL(101,BlodtryckOchGlukos[Systoliskt])","v":133},{"$f":"SUBTOTAL(101,BlodtryckOchGlukos[Diastoliskt])","v":{"v":82.33333333333333,"d":"82"}},{"$f":"SUBTOTAL(101,BlodtryckOchGlukos[Hjärtfrekvens])","v":{"v":72.33333333333333,"d":"72"}},{"$f":"SUBTOTAL(101,BlodtryckOchGlukos[Glukos])","v":{"v":103.33333333333333,"d":"103"}}]